[Event "Early-Titled-Tuesday-Blitz-September-26-2023"]
[Site "Chess.com"]
[Date "2023.09.26"]
[Round "3"]
[White "GMJustin"]
[Black "epiclord678"]
[Result "0-1"]
[WhiteElo "2224"]
[BlackElo "2415"]
[TimeControl "180+1"]
[EndTime "8:28:20 PDT"]
[Termination "epiclord678 won by checkmate"]

1. e4 {[%clk 0:02:54.1]} 1... c5 {[%clk 0:02:59.2]} 2. Nf3 {[%clk 0:02:53.2]}
2... d6 {[%clk 0:02:59.7]} 3. d4 {[%clk 0:02:51.1]} 3... cxd4 {[%clk 0:03:00.6]}
4. Nxd4 {[%clk 0:02:49.5]} 4... Nf6 {[%clk 0:03:01.3]} 5. Nc3 {[%clk 0:02:47.8]}
5... a6 {[%clk 0:03:01.9]} 6. Bg5 {[%clk 0:02:40]} 6... e6 {[%clk 0:03:02.1]} 7.
f4 {[%clk 0:02:39.7]} 7... Be7 {[%clk 0:03:02.5]} 8. Qf3 {[%clk 0:02:35.2]} 8...
Qc7 {[%clk 0:03:02.3]} 9. O-O-O {[%clk 0:02:32.3]} 9... Nbd7 {[%clk 0:03:01.7]}
10. g4 {[%clk 0:02:31.3]} 10... b5 {[%clk 0:02:57.9]} 11. Bxf6 {[%clk
0:02:29.1]} 11... Nxf6 {[%clk 0:02:56.5]} 12. g5 {[%clk 0:02:29]} 12... Nd7
{[%clk 0:02:56.7]} 13. f5 {[%clk 0:02:28.3]} 13... O-O {[%clk 0:02:53.4]} 14.
Rg1 {[%clk 0:02:16.7]} 14... b4 {[%clk 0:02:49.7]} 15. f6 {[%clk 0:02:08.4]}
15... bxc3 {[%clk 0:02:42.3]} 16. fxe7 {[%clk 0:02:05]} 16... cxb2+ {[%clk
0:02:42.6]} 17. Kb1 {[%clk 0:02:02.6]} 17... Re8 {[%clk 0:02:42.3]} 18. h4
{[%clk 0:01:50.2]} 18... Ne5 {[%clk 0:02:39.6]} 19. Qf2 {[%clk 0:01:39.3]} 19...
Qxe7 {[%clk 0:02:31.4]} 20. h5 {[%clk 0:01:37.4]} 20... Bb7 {[%clk 0:02:24.9]}
21. Bd3 {[%clk 0:01:29.7]} 21... Rac8 {[%clk 0:02:01.8]} 22. Nf3 {[%clk
0:01:15.5]} 22... Nxd3 {[%clk 0:01:41.4]} 23. cxd3 {[%clk 0:01:12.8]} 23... d5
{[%clk 0:01:36.9]} 24. e5 {[%clk 0:01:02.5]} 24... Qa3 {[%clk 0:01:25.3]} 25.
Qxb2 {[%clk 0:00:39.3]} 25... Qa5 {[%clk 0:01:17.3]} 26. Ka1 {[%clk 0:00:35.7]}
26... Rb8 {[%clk 0:01:07.1]} 27. h6 {[%clk 0:00:29.9]} 27... d4 {[%clk
0:00:58.2]} 28. Nxd4 {[%clk 0:00:25.2]} 28... Bd5 {[%clk 0:00:55.5]} 29. Qd2
{[%clk 0:00:16.1]} 29... Qa4 {[%clk 0:00:51.3]} 30. Ne2 {[%clk 0:00:05.8]} 30...
Qa3 {[%clk 0:00:27.1]} 31. Rb1 {[%clk 0:00:04.4]} 31... Rb5 {[%clk 0:00:14.3]}
32. Nc3 {[%clk 0:00:03.6]} 32... Ra5 {[%clk 0:00:11.4]} 33. hxg7 {[%clk
0:00:02.1]} 33... Qxc3+ {[%clk 0:00:04.6]} 34. Qxc3 {[%clk 0:00:01.8]} 34...
Rxa2# {[%clk 0:00:05]} 0-1

[Event "Early-Titled-Tuesday-Blitz-September-26-2023"]
[Site "Chess.com"]
[Date "2023.09.26"]
[Round "3"]
[White "ajedrezhoy"]
[Black "Elprofessor21"]
[Result "0-1"]
[WhiteElo "2381"]
[BlackElo "2611"]
[TimeControl "180+1"]
[EndTime "8:28:21 PDT"]
[Termination "Elprofessor21 won by checkmate"]

1. c4 {[%clk 0:03:00.9]} 1... Nc6 {[%clk 0:02:58.7]} 2. Nc3 {[%clk 0:02:54.9]}
2... Nf6 {[%clk 0:02:57.3]} 3. e4 {[%clk 0:02:54.5]} 3... d6 {[%clk 0:02:57.1]}
4. g3 {[%clk 0:02:53.3]} 4... e5 {[%clk 0:02:57.1]} 5. Bg2 {[%clk 0:02:53.3]}
5... Bg4 {[%clk 0:02:57.4]} 6. f3 {[%clk 0:02:52.3]} 6... Be6 {[%clk 0:02:57.6]}
7. d3 {[%clk 0:02:52]} 7... Qd7 {[%clk 0:02:58]} 8. Be3 {[%clk 0:02:50.7]} 8...
O-O-O {[%clk 0:02:57.8]} 9. Nd5 {[%clk 0:02:48.8]} 9... Kb8 {[%clk 0:02:56.2]}
10. Rb1 {[%clk 0:02:37.8]} 10... Be7 {[%clk 0:02:51.7]} 11. b4 {[%clk
0:02:36.3]} 11... Nd4 {[%clk 0:02:50.5]} 12. Bxd4 {[%clk 0:02:30.3]} 12... exd4
{[%clk 0:02:50.5]} 13. Ne2 {[%clk 0:02:30.4]} 13... c5 {[%clk 0:02:41.6]} 14.
bxc5 {[%clk 0:02:22]} 14... dxc5 {[%clk 0:02:41.8]} 15. O-O {[%clk 0:02:19.7]}
15... Nxd5 {[%clk 0:02:31.5]} 16. cxd5 {[%clk 0:02:17.1]} 16... Bh3 {[%clk
0:02:31.4]} 17. Bxh3 {[%clk 0:02:01.3]} 17... Qxh3 {[%clk 0:02:32.3]} 18. Qb3
{[%clk 0:01:59.5]} 18... Qd7 {[%clk 0:02:32.6]} 19. Qc4 {[%clk 0:01:45.3]} 19...
h5 {[%clk 0:01:36.2]} 20. Rb3 {[%clk 0:01:44]} 20... Ka8 {[%clk 0:01:34.1]} 21.
Rfb1 {[%clk 0:01:43]} 21... Rb8 {[%clk 0:01:34]} 22. a4 {[%clk 0:01:23.1]} 22...
h4 {[%clk 0:01:29.5]} 23. g4 {[%clk 0:01:23]} 23... g6 {[%clk 0:01:14.7]} 24. h3
{[%clk 0:01:19.5]} 24... f5 {[%clk 0:01:08.5]} 25. Nf4 {[%clk 0:01:15.3]} 25...
fxg4 {[%clk 0:01:05.5]} 26. fxg4 {[%clk 0:01:14.2]} 26... Rhf8 {[%clk
0:00:55.6]} 27. Ne6 {[%clk 0:01:01.3]} 27... Rf3 {[%clk 0:00:55.3]} 28. e5
{[%clk 0:00:57.3]} 28... Rg3+ {[%clk 0:00:48.8]} 29. Kf2 {[%clk 0:00:49.9]}
29... Rxh3 {[%clk 0:00:41.5]} 30. Qb5 {[%clk 0:00:44.9]} 30... Qc8 {[%clk
0:00:30.3]} 31. Kg2 {[%clk 0:00:29.9]} 31... Rg3+ {[%clk 0:00:29.5]} 32. Kh2
{[%clk 0:00:30.1]} 32... Re3 {[%clk 0:00:22.9]} 33. Qa5 {[%clk 0:00:27.1]} 33...
Bd8 {[%clk 0:00:13]} 34. Qxc5 {[%clk 0:00:25]} 34... Qxc5 {[%clk 0:00:10.4]} 35.
Nxc5 {[%clk 0:00:25]} 35... Rxe5 {[%clk 0:00:11]} 36. Nd7 {[%clk 0:00:23.9]}
36... Rxd5 {[%clk 0:00:09.2]} 37. Nxb8 {[%clk 0:00:23.8]} 37... Kxb8 {[%clk
0:00:09.7]} 38. Rxb7+ {[%clk 0:00:23.7]} 38... Kc8 {[%clk 0:00:10.1]} 39. Rxa7
{[%clk 0:00:22.1]} 39... g5 {[%clk 0:00:09.7]} 40. Rbb7 {[%clk 0:00:20.7]} 40...
Rc5 {[%clk 0:00:09]} 41. Rh7 {[%clk 0:00:19.8]} 41... Rc2+ {[%clk 0:00:08.8]}
42. Kh3 {[%clk 0:00:19.9]} 42... Bc7 {[%clk 0:00:09.3]} 43. a5 {[%clk
0:00:17.9]} 43... Rh2# {[%clk 0:00:09.1]} 0-1

[Event "Early-Titled-Tuesday-Blitz-September-26-2023"]
[Site "Chess.com"]
[Date "2023.09.26"]
[Round "3"]
[White "Doomfist26"]
[Black "jup1978"]
[Result "1/2-1/2"]
[WhiteElo "2613"]
[BlackElo "2427"]
[TimeControl "180+1"]
[EndTime "8:28:24 PDT"]
[Termination "Game drawn by repetition"]

1. e4 {[%clk 0:03:00.9]} 1... e6 {[%clk 0:02:56.9]} 2. d4 {[%clk 0:03:00]} 2...
d5 {[%clk 0:02:57]} 3. Nc3 {[%clk 0:03:00.7]} 3... Bb4 {[%clk 0:02:55.8]} 4. Qd3
{[%clk 0:02:58.5]} 4... dxe4 {[%clk 0:02:45]} 5. Qxe4 {[%clk 0:02:58.4]} 5...
Nf6 {[%clk 0:02:43.3]} 6. Qh4 {[%clk 0:02:58.3]} 6... Nc6 {[%clk 0:02:40.3]} 7.
Nf3 {[%clk 0:02:56.5]} 7... Qd5 {[%clk 0:02:26.6]} 8. Bd3 {[%clk 0:02:35.6]}
8... Qh5 {[%clk 0:02:13.1]} 9. Qg3 {[%clk 0:02:33.2]} 9... Qg4 {[%clk 0:01:53]}
10. Qxg4 {[%clk 0:02:17.9]} 10... Nxg4 {[%clk 0:01:53.9]} 11. Bf4 {[%clk
0:02:18.4]} 11... Bd6 {[%clk 0:01:48.2]} 12. Bxd6 {[%clk 0:02:02.8]} 12... cxd6
{[%clk 0:01:49.1]} 13. d5 {[%clk 0:02:03.5]} 13... Nce5 {[%clk 0:01:45.1]} 14.
Bb5+ {[%clk 0:01:55.7]} 14... Bd7 {[%clk 0:01:42.1]} 15. dxe6 {[%clk 0:01:55.9]}
15... fxe6 {[%clk 0:01:36.9]} 16. Nxe5 {[%clk 0:01:51.6]} 16... Nxe5 {[%clk
0:01:35.4]} 17. O-O-O {[%clk 0:01:51.9]} 17... Ke7 {[%clk 0:01:25.6]} 18. Rhe1
{[%clk 0:01:51.4]} 18... Nc6 {[%clk 0:01:17.6]} 19. Ne4 {[%clk 0:01:36.6]} 19...
d5 {[%clk 0:00:59.5]} 20. Nc5 {[%clk 0:01:36.6]} 20... a6 {[%clk 0:00:41.2]} 21.
Rxd5 {[%clk 0:01:20.9]} 21... Bc8 {[%clk 0:00:27]} 22. Bxc6 {[%clk 0:01:16.9]}
22... bxc6 {[%clk 0:00:27.9]} 23. Rde5 {[%clk 0:01:17.7]} 23... Kf6 {[%clk
0:00:24.1]} 24. f4 {[%clk 0:00:55.2]} 24... Rb8 {[%clk 0:00:18.1]} 25. Nxe6
{[%clk 0:00:52]} 25... h6 {[%clk 0:00:17.3]} 26. Nd4 {[%clk 0:00:50.4]} 26...
Bd7 {[%clk 0:00:15.5]} 27. Nxc6 {[%clk 0:00:49.2]} 27... Bxc6 {[%clk 0:00:14.9]}
28. Re6+ {[%clk 0:00:49.6]} 28... Kf5 {[%clk 0:00:15.2]} 29. Rxc6 {[%clk
0:00:50.3]} 29... Kxf4 {[%clk 0:00:15.1]} 30. Rxa6 {[%clk 0:00:48.9]} 30... Rhe8
{[%clk 0:00:12.3]} 31. Rf1+ {[%clk 0:00:42.6]} 31... Kg5 {[%clk 0:00:11.1]} 32.
b3 {[%clk 0:00:25]} 32... Re2 {[%clk 0:00:10.7]} 33. Rg1 {[%clk 0:00:25.3]}
33... Rc8 {[%clk 0:00:09.1]} 34. c4 {[%clk 0:00:22.2]} 34... Rf8 {[%clk
0:00:09.6]} 35. Rd6 {[%clk 0:00:04.9]} 35... Rff2 {[%clk 0:00:09.7]} 36. Ra6
{[%clk 0:00:04.3]} 36... Rc2+ {[%clk 0:00:09.3]} 37. Kd1 {[%clk 0:00:04.9]}
37... Rfd2+ {[%clk 0:00:08.1]} 38. Ke1 {[%clk 0:00:05.2]} 38... Re2+ {[%clk
0:00:07.9]} 39. Kd1 {[%clk 0:00:06]} 39... Red2+ {[%clk 0:00:08.1]} 40. Ke1
{[%clk 0:00:06.6]} 40... Re2+ {[%clk 0:00:08.5]} 41. Kd1 {[%clk 0:00:07.3]}
41... Red2+ {[%clk 0:00:07.9]} 1/2-1/2

[Event "Early-Titled-Tuesday-Blitz-September-26-2023"]
[Site "Chess.com"]
[Date "2023.09.26"]
[Round "3"]
[White "DanielTitichoca"]
[Black "ferdipy"]
[Result "0-1"]
[WhiteElo "2555"]
[BlackElo "2287"]
[TimeControl "180+1"]
[EndTime "8:28:26 PDT"]
[Termination "ferdipy won on time"]

1. b3 {[%clk 0:03:00.9]} 1... d6 {[%clk 0:02:56]} 2. Bb2 {[%clk 0:03:01.3]} 2...
e5 {[%clk 0:02:55.7]} 3. g3 {[%clk 0:03:00.4]} 3... Nc6 {[%clk 0:02:56.1]} 4.
Bg2 {[%clk 0:03:01.1]} 4... g6 {[%clk 0:02:56.4]} 5. f4 {[%clk 0:03:00.7]} 5...
Bg7 {[%clk 0:02:56.6]} 6. Nh3 {[%clk 0:02:59.8]} 6... Nge7 {[%clk 0:02:52.9]} 7.
O-O {[%clk 0:03:00.2]} 7... O-O {[%clk 0:02:44.7]} 8. c4 {[%clk 0:03:00.7]} 8...
Bg4 {[%clk 0:02:40.5]} 9. Nf2 {[%clk 0:02:54.5]} 9... Be6 {[%clk 0:02:40.9]} 10.
d3 {[%clk 0:02:48.2]} 10... exf4 {[%clk 0:02:37.3]} 11. Bxg7 {[%clk 0:02:45.3]}
11... Kxg7 {[%clk 0:02:35.9]} 12. gxf4 {[%clk 0:02:45]} 12... d5 {[%clk
0:02:27.5]} 13. e3 {[%clk 0:02:32.2]} 13... dxc4 {[%clk 0:02:23.9]} 14. bxc4
{[%clk 0:02:31.9]} 14... Qd6 {[%clk 0:02:16.8]} 15. Ne4 {[%clk 0:02:19.3]} 15...
Qb4 {[%clk 0:02:07.8]} 16. Nbc3 {[%clk 0:02:14.7]} 16... Rad8 {[%clk 0:02:01.3]}
17. Rb1 {[%clk 0:02:12.6]} 17... Qa5 {[%clk 0:01:56.9]} 18. Rxb7 {[%clk
0:02:12.6]} 18... Bxc4 {[%clk 0:01:55.8]} 19. Qa1 {[%clk 0:02:04.3]} 19... Rxd3
{[%clk 0:01:30.9]} 20. Nd5+ {[%clk 0:01:58.4]} 20... Kh6 {[%clk 0:01:29.4]} 21.
Nxe7 {[%clk 0:01:47.4]} 21... Nxe7 {[%clk 0:00:57.7]} 22. Rf3 {[%clk 0:01:47.4]}
22... Be6 {[%clk 0:00:44.9]} 23. Ng5 {[%clk 0:01:12]} 23... Bg4 {[%clk
0:00:38.4]} 24. Rg3 {[%clk 0:01:10.4]} 24... Rd1+ {[%clk 0:00:35.1]} 25. Qxd1
{[%clk 0:01:10.3]} 25... Bxd1 {[%clk 0:00:36]} 26. Rh3+ {[%clk 0:01:04.5]} 26...
Bh5 {[%clk 0:00:35.7]} 27. Be4 {[%clk 0:00:26.6]} 27... Qe1+ {[%clk 0:00:30.6]}
28. Kg2 {[%clk 0:00:25.2]} 28... Qe2+ {[%clk 0:00:28.3]} 29. Kg1 {[%clk
0:00:24.3]} 29... Nf5 {[%clk 0:00:20.3]} 30. Bxf5 {[%clk 0:00:20.6]} 30... gxf5
{[%clk 0:00:21.2]} 31. Rxc7 {[%clk 0:00:18.4]} 31... Qe1+ {[%clk 0:00:17.4]} 32.
Kg2 {[%clk 0:00:18.3]} 32... Qd2+ {[%clk 0:00:16.4]} 33. Kg1 {[%clk 0:00:17.7]}
33... Qd5 {[%clk 0:00:12.1]} 34. Rxa7 {[%clk 0:00:08.3]} 34... f6 {[%clk
0:00:12.1]} 35. Nf3 {[%clk 0:00:04]} 35... Rg8+ {[%clk 0:00:10.6]} 36. Kf2
{[%clk 0:00:04.5]} 36... Rg7 {[%clk 0:00:05.8]} 37. Ra6 {[%clk 0:00:02.3]} 37...
Qe4 {[%clk 0:00:04.1]} 0-1

[Event "Early-Titled-Tuesday-Blitz-September-26-2023"]
[Site "Chess.com"]
[Date "2023.09.26"]
[Round "3"]
[White "Sinquefield"]
[Black "RobertoJBM"]
[Result "1/2-1/2"]
[WhiteElo "2527"]
[BlackElo "2834"]
[TimeControl "180+1"]
[EndTime "8:28:27 PDT"]
[Termination "Game drawn by repetition"]

1. d4 {[%clk 0:03:00.9]} 1... d5 {[%clk 0:02:59.7]} 2. Nf3 {[%clk 0:02:59.7]}
2... Nf6 {[%clk 0:02:59.5]} 3. c3 {[%clk 0:03:00]} 3... Bf5 {[%clk 0:02:55.9]}
4. Qb3 {[%clk 0:02:56.5]} 4... Qc8 {[%clk 0:02:55.7]} 5. Bf4 {[%clk 0:02:56.7]}
5... e6 {[%clk 0:02:54.7]} 6. h3 {[%clk 0:02:57]} 6... h6 {[%clk 0:02:54.7]} 7.
Nbd2 {[%clk 0:02:56.7]} 7... Bd6 {[%clk 0:02:53.1]} 8. Bxd6 {[%clk 0:02:55]}
8... cxd6 {[%clk 0:02:54]} 9. e3 {[%clk 0:02:55.4]} 9... O-O {[%clk 0:02:53.7]}
10. Be2 {[%clk 0:02:54.6]} 10... Nc6 {[%clk 0:02:53.2]} 11. O-O {[%clk 0:02:54]}
11... Qd7 {[%clk 0:02:50.3]} 12. Rac1 {[%clk 0:02:49.9]} 12... Rfc8 {[%clk
0:02:49.2]} 13. c4 {[%clk 0:02:48.6]} 13... dxc4 {[%clk 0:02:47.3]} 14. Nxc4
{[%clk 0:02:47.3]} 14... Be4 {[%clk 0:02:38.9]} 15. Qa3 {[%clk 0:02:44.2]} 15...
Rd8 {[%clk 0:02:36.8]} 16. b4 {[%clk 0:02:36.5]} 16... Ne7 {[%clk 0:02:26.3]}
17. Nfd2 {[%clk 0:02:34.2]} 17... Bd5 {[%clk 0:02:24.7]} 18. Bf3 {[%clk
0:02:11.2]} 18... Bxf3 {[%clk 0:02:09.6]} 19. Nxf3 {[%clk 0:02:12.1]} 19... Nfd5
{[%clk 0:02:04.1]} 20. e4 {[%clk 0:01:57.7]} 20... Nb6 {[%clk 0:02:00.9]} 21.
Ne3 {[%clk 0:00:57]} 21... Ng6 {[%clk 0:01:48.7]} 22. g3 {[%clk 0:00:43.9]}
22... e5 {[%clk 0:01:34.7]} 23. Kg2 {[%clk 0:00:40.3]} 23... exd4 {[%clk
0:01:20.3]} 24. Nxd4 {[%clk 0:00:41.2]} 24... d5 {[%clk 0:01:20.8]} 25. Rfd1
{[%clk 0:00:19.1]} 25... Qe8 {[%clk 0:01:01.6]} 26. exd5 {[%clk 0:00:17.4]}
26... Nxd5 {[%clk 0:01:00.1]} 27. Nxd5 {[%clk 0:00:17.7]} 27... Rxd5 {[%clk
0:01:00]} 28. Qf3 {[%clk 0:00:18]} 28... Rad8 {[%clk 0:00:57.8]} 29. Nb3 {[%clk
0:00:17.6]} 29... Ne5 {[%clk 0:00:33.6]} 30. Qxd5 {[%clk 0:00:13.5]} 30... Rxd5
{[%clk 0:00:31.4]} 31. Rxd5 {[%clk 0:00:14.4]} 31... Qe6 {[%clk 0:00:27.8]} 32.
Rcd1 {[%clk 0:00:11.2]} 32... Nc6 {[%clk 0:00:22.6]} 33. b5 {[%clk 0:00:09.4]}
33... Nb4 {[%clk 0:00:21.4]} 34. Rd8+ {[%clk 0:00:09.9]} 34... Kh7 {[%clk
0:00:21.3]} 35. R1d2 {[%clk 0:00:10.3]} 35... Nxa2 {[%clk 0:00:19.1]} 36. Rxa2
{[%clk 0:00:09]} 36... Qxb3 {[%clk 0:00:18.9]} 37. Rxa7 {[%clk 0:00:08.4]} 37...
Qxb5 {[%clk 0:00:19.1]} 38. Rb8 {[%clk 0:00:08.6]} 38... Qd5+ {[%clk 0:00:18.6]}
39. Kg1 {[%clk 0:00:06.3]} 39... Qd1+ {[%clk 0:00:15.9]} 40. Kg2 {[%clk
0:00:06.3]} 40... Qd5+ {[%clk 0:00:13.7]} 41. Kg1 {[%clk 0:00:06.4]} 41... Qd1+
{[%clk 0:00:08.4]} 42. Kg2 {[%clk 0:00:06.4]} 42... Qd5+ {[%clk 0:00:07.5]}
1/2-1/2

[Event "Early-Titled-Tuesday-Blitz-September-26-2023"]
[Site "Chess.com"]
[Date "2023.09.26"]
[Round "3"]
[White "almaguerjm"]
[Black "JiaHaoxiang"]
[Result "1-0"]
[WhiteElo "2480"]
[BlackElo "2633"]
[TimeControl "180+1"]
[EndTime "8:28:27 PDT"]
[Termination "almaguerjm won by resignation"]

1. e4 {[%clk 0:03:00.9]} 1... c5 {[%clk 0:02:57.7]} 2. Nf3 {[%clk 0:02:57.8]}
2... d6 {[%clk 0:02:57.8]} 3. d4 {[%clk 0:02:57.3]} 3... cxd4 {[%clk 0:02:58.6]}
4. Nxd4 {[%clk 0:02:58.2]} 4... Nf6 {[%clk 0:02:58.5]} 5. Nc3 {[%clk 0:02:58.3]}
5... g6 {[%clk 0:02:58.5]} 6. Be3 {[%clk 0:02:54.2]} 6... Bg7 {[%clk 0:02:58.8]}
7. Be2 {[%clk 0:02:54.5]} 7... O-O {[%clk 0:02:59]} 8. f3 {[%clk 0:02:41.6]}
8... Nc6 {[%clk 0:02:58]} 9. Qd2 {[%clk 0:02:40]} 9... d5 {[%clk 0:02:53.4]} 10.
Nxc6 {[%clk 0:02:36]} 10... bxc6 {[%clk 0:02:52.7]} 11. e5 {[%clk 0:02:36.1]}
11... Ne8 {[%clk 0:02:50.3]} 12. f4 {[%clk 0:02:36]} 12... Nc7 {[%clk
0:02:49.4]} 13. O-O {[%clk 0:02:29.6]} 13... Ne6 {[%clk 0:02:41.3]} 14. Bf2
{[%clk 0:02:22.8]} 14... f6 {[%clk 0:02:40.5]} 15. Bg3 {[%clk 0:02:13.4]} 15...
Qb6+ {[%clk 0:02:36.6]} 16. Kh1 {[%clk 0:02:13.6]} 16... Qxb2 {[%clk 0:02:36.1]}
17. Bf3 {[%clk 0:01:36.8]} 17... Rd8 {[%clk 0:02:03.8]} 18. a4 {[%clk
0:01:22.9]} 18... Qb4 {[%clk 0:01:55.5]} 19. Rab1 {[%clk 0:01:19]} 19... Qa5
{[%clk 0:01:54.5]} 20. Rfd1 {[%clk 0:01:15.4]} 20... Qc7 {[%clk 0:01:45.7]} 21.
exf6 {[%clk 0:01:11.9]} 21... Bxf6 {[%clk 0:01:43.5]} 22. f5 {[%clk 0:01:12.4]}
22... Qa5 {[%clk 0:01:40.5]} 23. fxe6 {[%clk 0:00:55.5]} 23... Qxc3 {[%clk
0:01:34.4]} 24. Qe2 {[%clk 0:00:55.3]} 24... a5 {[%clk 0:01:29.2]} 25. Rb3
{[%clk 0:00:50]} 25... Ba6 {[%clk 0:01:25.1]} 26. Qf2 {[%clk 0:00:27.3]} 26...
Qc4 {[%clk 0:01:19.8]} 27. Re1 {[%clk 0:00:25.7]} 27... Qxa4 {[%clk 0:01:13.9]}
28. h4 {[%clk 0:00:26.1]} 28... Qd4 {[%clk 0:01:12.5]} 29. Rbe3 {[%clk
0:00:19.6]} 29... Rf8 {[%clk 0:01:05.3]} 30. h5 {[%clk 0:00:19.8]} 30... g5
{[%clk 0:01:05.1]} 31. c3 {[%clk 0:00:20]} 31... Qc5 {[%clk 0:01:01.1]} 32. Qd2
{[%clk 0:00:19.2]} 32... a4 {[%clk 0:00:55.2]} 33. h6 {[%clk 0:00:19.1]} 33...
a3 {[%clk 0:00:55.3]} 34. Bh5 {[%clk 0:00:19.3]} 34... Bc4 {[%clk 0:00:47.3]}
35. Bf7+ {[%clk 0:00:17.6]} 35... Rxf7 {[%clk 0:00:47.8]} 36. exf7+ {[%clk
0:00:18.5]} 36... Kxf7 {[%clk 0:00:48.3]} 37. Qf2 {[%clk 0:00:18.3]} 37... Kg8
{[%clk 0:00:46.3]} 38. Qf5 {[%clk 0:00:12.2]} 38... a2 {[%clk 0:00:33.2]} 39.
Qe6+ {[%clk 0:00:12.6]} 39... Kh8 {[%clk 0:00:33.3]} 40. Be5 {[%clk 0:00:13]}
40... Rf8 {[%clk 0:00:30.9]} 41. Bxf6+ {[%clk 0:00:06.3]} 41... exf6 {[%clk
0:00:30.9]} 42. Qd7 {[%clk 0:00:04]} 1-0

[Event "Early-Titled-Tuesday-Blitz-September-26-2023"]
[Site "Chess.com"]
[Date "2023.09.26"]
[Round "3"]
[White "sergeikim"]
[Black "ARMQUEEN"]
[Result "0-1"]
[WhiteElo "2609"]
[BlackElo "2436"]
[TimeControl "180+1"]
[EndTime "8:28:27 PDT"]
[Termination "ARMQUEEN won by checkmate"]

1. d4 {[%clk 0:03:00.9]} 1... Nf6 {[%clk 0:02:57]} 2. c4 {[%clk 0:03:01]} 2...
c5 {[%clk 0:02:54.3]} 3. d5 {[%clk 0:03:00]} 3... e6 {[%clk 0:02:53.5]} 4. Nc3
{[%clk 0:02:59.6]} 4... exd5 {[%clk 0:02:53.3]} 5. cxd5 {[%clk 0:03:00.5]} 5...
d6 {[%clk 0:02:51.7]} 6. e4 {[%clk 0:03:01]} 6... g6 {[%clk 0:02:51.4]} 7. Nge2
{[%clk 0:03:01.3]} 7... Bg7 {[%clk 0:02:50.3]} 8. Ng3 {[%clk 0:03:01.8]} 8... h5
{[%clk 0:02:49.5]} 9. Be2 {[%clk 0:02:59.9]} 9... Nbd7 {[%clk 0:02:47.8]} 10.
O-O {[%clk 0:02:50.4]} 10... h4 {[%clk 0:02:46.1]} 11. Nh1 {[%clk 0:02:50.6]}
11... a6 {[%clk 0:02:44.1]} 12. a4 {[%clk 0:02:49.7]} 12... Qe7 {[%clk
0:02:39.2]} 13. Bg5 {[%clk 0:02:41.7]} 13... Nf8 {[%clk 0:02:26.6]} 14. f3
{[%clk 0:02:35.4]} 14... h3 {[%clk 0:02:24.2]} 15. g4 {[%clk 0:02:34.8]} 15...
N8h7 {[%clk 0:02:22.4]} 16. Be3 {[%clk 0:02:33.5]} 16... Bd7 {[%clk 0:02:15.2]}
17. Ng3 {[%clk 0:02:32.3]} 17... Nf8 {[%clk 0:02:11.6]} 18. Qd2 {[%clk
0:02:24.6]} 18... Ng8 {[%clk 0:01:57.7]} 19. Rae1 {[%clk 0:02:16.5]} 19... Be5
{[%clk 0:01:54]} 20. f4 {[%clk 0:02:15.9]} 20... Bg7 {[%clk 0:01:53.2]} 21. e5
{[%clk 0:02:13.6]} 21... dxe5 {[%clk 0:01:39.7]} 22. d6 {[%clk 0:02:13.7]} 22...
Qh4 {[%clk 0:01:35]} 23. f5 {[%clk 0:02:13.3]} 23... Nf6 {[%clk 0:01:25]} 24.
Bg5 {[%clk 0:02:09.2]} 24... Qh7 {[%clk 0:01:23.1]} 25. Bc4 {[%clk 0:01:30.5]}
25... O-O-O {[%clk 0:00:59.5]} 26. Bxf7 {[%clk 0:01:24]} 26... gxf5 {[%clk
0:00:52.3]} 27. gxf5 {[%clk 0:01:18.1]} 27... Bh6 {[%clk 0:00:40.6]} 28. Bc4
{[%clk 0:01:08]} 28... Ng4 {[%clk 0:00:32.9]} 29. Nd5 {[%clk 0:01:02.6]} 29...
Kb8 {[%clk 0:00:24.1]} 30. Ne7 {[%clk 0:00:51.7]} 30... Qg7 {[%clk 0:00:20.3]}
31. Bxh6 {[%clk 0:00:43.9]} 31... Rxh6 {[%clk 0:00:19.9]} 32. Bd5 {[%clk
0:00:39.3]} 32... Bxa4 {[%clk 0:00:19.2]} 33. Qe2 {[%clk 0:00:36.7]} 33... Rhxd6
{[%clk 0:00:17.7]} 34. Qf3 {[%clk 0:00:35.2]} 34... Qxe7 {[%clk 0:00:17]} 35. f6
{[%clk 0:00:35.4]} 35... Rxf6 {[%clk 0:00:15.3]} 36. Qxg4 {[%clk 0:00:35.4]}
36... Rxd5 {[%clk 0:00:15.2]} 37. Rxf6 {[%clk 0:00:32.2]} 37... Qxf6 {[%clk
0:00:15.2]} 38. Rf1 {[%clk 0:00:32.6]} 38... Qd8 {[%clk 0:00:14.6]} 39. Qxa4
{[%clk 0:00:32.5]} 39... Ne6 {[%clk 0:00:14.6]} 40. Qe4 {[%clk 0:00:30.6]} 40...
Nf4 {[%clk 0:00:13.1]} 41. Qf3 {[%clk 0:00:27.8]} 41... Rd2 {[%clk 0:00:12.4]}
42. Qe3 {[%clk 0:00:26.7]} 42... Qd5 {[%clk 0:00:10.5]} 43. Rf2 {[%clk
0:00:23.8]} 43... Rd1+ {[%clk 0:00:09.2]} 44. Nf1 {[%clk 0:00:23.5]} 44... Rxf1+
{[%clk 0:00:07.6]} 45. Kxf1 {[%clk 0:00:21.4]} 45... Qh1# {[%clk 0:00:07.5]} 0-1